[Event "Titled Tuesday Blitz June 13 Early 2023"]
[White "Vila Dupla, Aurelio"]
[Black "Toncheva, Nadya"]
[WhiteFideId "2203383"]
[BlackFideId "2924056"]
[WhiteElo "2009"]
[BlackElo "2101"]
[Result "0-1"]
[Round "5"]
[TimeControl "180+2"]
[Date "2023.06.13"]
[WhiteClock "0:00:00"]
[BlackClock "0:00:23"]
[Board "132"]

1. Nf3 {[%clk 0:03:00]}  c5 {[%clk 0:03:00]} 2. c4 {[%clk 0:03:00]}  g6 {[%clk 0:03:00]} 3. d4 {[%clk 0:02:59]}  cxd4 {[%clk 0:03:00]} 4. Nxd4 {[%clk 0:02:58]}  Bg7 {[%clk 0:03:00]} 5. e4 {[%clk 0:02:58]}  Nc6 {[%clk 0:03:01]} 6. Be3 {[%clk 0:02:58]}  Nf6 {[%clk 0:03:02]} 7. Nc3 {[%clk 0:02:54]}  O-O {[%clk 0:03:02]} 8. Be2 {[%clk 0:02:53]}  d6 {[%clk 0:03:02]} 9. O-O {[%clk 0:02:53]}  Bd7 {[%clk 0:03:03]} 10. f3 {[%clk 0:02:53]}  Nxd4 {[%clk 0:03:03]} 11. Bxd4 {[%clk 0:02:52]}  a5 {[%clk 0:03:04]} 12. b3 {[%clk 0:02:33]}  Bc6 {[%clk 0:03:04]} 13. Qd2 {[%clk 0:02:28]}  Nd7 {[%clk 0:03:05]} 14. Be3 {[%clk 0:02:09]}  Nc5 {[%clk 0:03:05]} 15. Rab1 {[%clk 0:02:07]}  Qb6 {[%clk 0:03:05]} 16. Nd5 {[%clk 0:01:35]}  Bxd5 {[%clk 0:03:05]} 17. cxd5 {[%clk 0:01:35]}  Qb4 {[%clk 0:03:04]} 18. Rfc1 {[%clk 0:01:30]}  Rfc8 {[%clk 0:02:59]} 19. Rc4 {[%clk 0:01:26]}  Qxd2 {[%clk 0:02:44]} 20. Bxd2 {[%clk 0:01:26]}  b5 {[%clk 0:02:38]} 21. Rc2 {[%clk 0:01:25]}  b4 {[%clk 0:02:22]} 22. Bb5 {[%clk 0:01:21]}  Bd4+ {[%clk 0:02:21]} 23. Kf1 {[%clk 0:01:19]}  Rcb8 {[%clk 0:02:18]} 24. Bc6 {[%clk 0:01:18]}  Ra6 {[%clk 0:02:16]} 25. Ke2 {[%clk 0:01:15]}  f5 {[%clk 0:02:10]} 26. exf5 {[%clk 0:01:08]}  gxf5 {[%clk 0:02:11]} 27. Bg5 {[%clk 0:01:08]}  Kf7 {[%clk 0:02:10]} 28. g4 {[%clk 0:01:02]}  Rg8 {[%clk 0:02:03]} 29. h4 {[%clk 0:00:57]}  Bc3 {[%clk 0:01:43]} 30. Rf1 {[%clk 0:00:53]}  e5 {[%clk 0:01:36]} 31. dxe6+ {[%clk 0:00:48]}  Kxe6 {[%clk 0:01:36]} 32. Bb5 {[%clk 0:00:44]}  Ra7 {[%clk 0:01:27]} 33. Bc4+ {[%clk 0:00:44]}  d5 {[%clk 0:01:27]} 34. gxf5+ {[%clk 0:00:44]}  Kxf5 {[%clk 0:01:25]} 35. Bxd5 {[%clk 0:00:43]}  Re8+ {[%clk 0:01:25]} 36. Be4+ {[%clk 0:00:34]}  Nxe4 {[%clk 0:01:16]} 37. fxe4+ {[%clk 0:00:34]}  Kxe4 {[%clk 0:01:17]} 38. Rf4+ {[%clk 0:00:30]}  Kd5+ {[%clk 0:01:17]} 39. Kf3 {[%clk 0:00:30]}  Re1 {[%clk 0:01:12]} 40. Re2 {[%clk 0:00:22]}  Rxe2 {[%clk 0:01:06]} 41. Kxe2 {[%clk 0:00:22]}  Be5 {[%clk 0:01:03]} 42. Rc4 {[%clk 0:00:20]}  Rf7 {[%clk 0:01:01]} 43. Be3 {[%clk 0:00:16]}  Bd6 {[%clk 0:00:52]} 44. Rg4 {[%clk 0:00:13]}  Rc7 {[%clk 0:00:43]} 45. Rg5+ {[%clk 0:00:12]}  Ke4 {[%clk 0:00:43]} 46. Rg4+ {[%clk 0:00:12]}  Kf5 {[%clk 0:00:41]} 47. Rc4 {[%clk 0:00:11]}  Rxc4 {[%clk 0:00:38]} 48. bxc4 {[%clk 0:00:10]}  Ke4 {[%clk 0:00:35]} 49. c5 {[%clk 0:00:08]}  Bc7 {[%clk 0:00:36]} 50. Bf2 {[%clk 0:00:08]}  a4 {[%clk 0:00:35]} 51. Be1 {[%clk 0:00:06]}  b3 {[%clk 0:00:34]} 52. axb3 {[%clk 0:00:06]}  axb3 {[%clk 0:00:35]} 53. Kd1 {[%clk 0:00:06]}  Kd3 {[%clk 0:00:35]} 54. Kc1 {[%clk 0:00:06]}  Be5 {[%clk 0:00:33]} 55. c6 {[%clk 0:00:06]}  Kc4 {[%clk 0:00:29]} 56. Kb1 {[%clk 0:00:05]}  Kb5 {[%clk 0:00:26]} 57. c7 {[%clk 0:00:02]}  Bxc7 {[%clk 0:00:27]} 58. Kb2 {[%clk 0:00:02]}  Kc4 {[%clk 0:00:27]} 59. Bf2 {[%clk 0:00:02]}  Be5+ {[%clk 0:00:27]} 60. Kb1 {[%clk 0:00:02]}  h5 {[%clk 0:00:27]} 61. Be1 {[%clk 0:00:02]}  Bc3 {[%clk 0:00:25]} 62. Bf2 {[%clk 0:00:02]}  Bf6 {[%clk 0:00:23]} 63. Be1 {[%clk 0:00:02]}  Kd3 {[%clk 0:00:23]} 64. Bg3 {[%clk 0:00:00]}  Ke2 {[%clk 0:00:23]} 0-1


[Site "https://www.chess.com"]

[Event "Titled Tuesday Blitz June 13 Early 2023"]
[White "Ciorgovean, Iustin"]
[Black "Jaivardhan Raj"]
[WhiteFideId "1242911"]
[BlackFideId "25744437"]
[WhiteElo "2186"]
[BlackElo "1772"]
[Result "1-0"]
[Round "5"]
[TimeControl "180+2"]
[Date "2023.06.13"]
[WhiteClock "0:00:20"]
[BlackClock "0:00:13"]
[Board "133"]

1. e4 {[%clk 0:03:00]}  c5 {[%clk 0:02:59]} 2. Nf3 {[%clk 0:03:00]}  e6 {[%clk 0:02:59]} 3. g3 {[%clk 0:02:57]}  Nc6 {[%clk 0:02:56]} 4. Bg2 {[%clk 0:02:57]}  Qc7 {[%clk 0:02:54]} 5. O-O {[%clk 0:02:57]}  d6 {[%clk 0:02:45]} 6. Re1 {[%clk 0:02:52]}  Nf6 {[%clk 0:02:42]} 7. c4 {[%clk 0:02:48]}  Be7 {[%clk 0:02:21]} 8. Nc3 {[%clk 0:02:48]}  a6 {[%clk 0:02:14]} 9. b3 {[%clk 0:02:30]}  O-O {[%clk 0:02:07]} 10. d4 {[%clk 0:02:26]}  cxd4 {[%clk 0:02:04]} 11. Nxd4 {[%clk 0:02:27]}  Bd7 {[%clk 0:01:54]} 12. a4 {[%clk 0:01:40]}  Rfd8 {[%clk 0:01:48]} 13. Ba3 {[%clk 0:01:36]}  Rac8 {[%clk 0:01:43]} 14. Rb1 {[%clk 0:01:28]}  Nxd4 {[%clk 0:01:40]} 15. Qxd4 {[%clk 0:01:27]}  Bc6 {[%clk 0:01:37]} 16. Red1 {[%clk 0:01:16]}  h6 {[%clk 0:01:00]} 17. h3 {[%clk 0:01:12]}  b6 {[%clk 0:00:48]} 18. Bb4 {[%clk 0:01:04]}  Qb7 {[%clk 0:00:45]} 19. Rbc1 {[%clk 0:00:56]}  Nd7 {[%clk 0:00:33]} 20. Nd5 {[%clk 0:00:45]}  Bf8 {[%clk 0:00:30]} 21. Bc3 {[%clk 0:00:24]}  Nc5 {[%clk 0:00:24]} 22. Nf6+ {[%clk 0:00:14]}  gxf6 {[%clk 0:00:20]} 23. Qxf6 {[%clk 0:00:14]}  e5 {[%clk 0:00:20]} 24. b4 {[%clk 0:00:12]}  Bg7 {[%clk 0:00:19]} 25. Qf5 {[%clk 0:00:11]}  Nxe4 {[%clk 0:00:19]} 26. b5 {[%clk 0:00:11]}  axb5 {[%clk 0:00:17]} 27. axb5 {[%clk 0:00:11]}  Nxc3 {[%clk 0:00:12]} 28. Bxc6 {[%clk 0:00:11]}  Ne2+ {[%clk 0:00:10]} 29. Kf1 {[%clk 0:00:11]}  Rxc6 {[%clk 0:00:09]} 30. bxc6 {[%clk 0:00:10]}  Qxc6 {[%clk 0:00:09]} 31. Kxe2 {[%clk 0:00:11]}  b5 {[%clk 0:00:08]} 32. cxb5 {[%clk 0:00:11]}  Qxb5+ {[%clk 0:00:09]} 33. Qd3 {[%clk 0:00:11]}  Qb2+ {[%clk 0:00:09]} 34. Kf1 {[%clk 0:00:11]}  Qb7 {[%clk 0:00:09]} 35. Qd5 {[%clk 0:00:11]}  Qe7 {[%clk 0:00:09]} 36. Kg2 {[%clk 0:00:12]}  Qe6 {[%clk 0:00:09]} 37. Rc6 {[%clk 0:00:12]}  Qf5 {[%clk 0:00:09]} 38. Rxd6 {[%clk 0:00:11]}  Rxd6 {[%clk 0:00:08]} 39. Qxd6 {[%clk 0:00:12]}  Bf6 {[%clk 0:00:09]} 40. Qd3 {[%clk 0:00:10]}  e4 {[%clk 0:00:09]} 41. Qd5 {[%clk 0:00:11]}  Qf3+ {[%clk 0:00:09]} 42. Kg1 {[%clk 0:00:11]}  e3 {[%clk 0:00:08]} 43. Qxf3 {[%clk 0:00:10]}  exf2+ {[%clk 0:00:08]} 44. Kxf2 {[%clk 0:00:11]}  Be5 {[%clk 0:00:08]} 45. Kg2 {[%clk 0:00:12]}  Bg7 {[%clk 0:00:08]} 46. Rd5 {[%clk 0:00:12]}  f6 {[%clk 0:00:08]} 47. Rf5 {[%clk 0:00:13]}  Kh7 {[%clk 0:00:09]} 48. Rxf6 {[%clk 0:00:13]}  Bxf6 {[%clk 0:00:10]} 49. Qxf6 {[%clk 0:00:14]}  Kg8 {[%clk 0:00:10]} 50. Qxh6 {[%clk 0:00:14]}  Kf7 {[%clk 0:00:11]} 51. Qg5 {[%clk 0:00:14]}  Ke6 {[%clk 0:00:11]} 52. h4 {[%clk 0:00:15]}  Kd6 {[%clk 0:00:11]} 53. h5 {[%clk 0:00:16]}  Ke6 {[%clk 0:00:11]} 54. h6 {[%clk 0:00:17]}  Kd6 {[%clk 0:00:12]} 55. h7 {[%clk 0:00:18]}  Ke6 {[%clk 0:00:13]} 56. Qg7 {[%clk 0:00:18]}  Kd6 {[%clk 0:00:14]} 57. h8=Q {[%clk 0:00:19]}  Ke6 {[%clk 0:00:15]} 58. Qhf8 {[%clk 0:00:19]}  Kd5 {[%clk 0:00:14]} 59. Qge7 {[%clk 0:00:19]}  Kc4 {[%clk 0:00:13]} 60. Qfd8 {[%clk 0:00:20]} 1-0


[Site "https://www.chess.com"]

[Event "Titled Tuesday Blitz June 13 Early 2023"]
[White "Rodchenkov, Sergey D."]
[Black "campochess"]
[WhiteFideId "4168712"]
[WhiteElo "2277"]
[BlackElo "2197"]
[Result "1-0"]
[Round "5"]
[TimeControl "180+2"]
[Date "2023.06.13"]
[WhiteClock "0:00:51"]
[BlackClock "0:00:12"]
[Board "134"]

1. e4 {[%clk 0:03:00]}  c5 {[%clk 0:02:59]} 2. Nf3 {[%clk 0:03:01]}  Nc6 {[%clk 0:03:00]} 3. d4 {[%clk 0:03:01]}  cxd4 {[%clk 0:03:00]} 4. Nxd4 {[%clk 0:03:02]}  e5 {[%clk 0:03:00]} 5. Nb5 {[%clk 0:03:02]}  a6 {[%clk 0:03:00]} 6. Nd6+ {[%clk 0:03:02]}  Bxd6 {[%clk 0:03:00]} 7. Qxd6 {[%clk 0:03:03]}  Qe7 {[%clk 0:03:00]} 8. Qd1 {[%clk 0:03:01]}  Nf6 {[%clk 0:02:59]} 9. Nc3 {[%clk 0:03:02]}  d6 {[%clk 0:02:59]} 10. Bg5 {[%clk 0:03:00]}  Be6 {[%clk 0:02:59]} 11. Nd5 {[%clk 0:03:01]}  Bxd5 {[%clk 0:02:59]} 12. exd5 {[%clk 0:03:02]}  Nb8 {[%clk 0:02:59]} 13. Be2 {[%clk 0:03:02]}  Nbd7 {[%clk 0:02:58]} 14. O-O {[%clk 0:03:03]}  h6 {[%clk 0:02:58]} 15. Be3 {[%clk 0:03:03]}  O-O {[%clk 0:02:53]} 16. c4 {[%clk 0:03:04]}  Rac8 {[%clk 0:02:51]} 17. a4 {[%clk 0:02:59]}  Ne4 {[%clk 0:02:50]} 18. f3 {[%clk 0:02:56]}  Ng5 {[%clk 0:02:45]} 19. b4 {[%clk 0:02:53]}  f5 {[%clk 0:02:45]} 20. Bf2 {[%clk 0:02:37]}  f4 {[%clk 0:02:39]} 21. h4 {[%clk 0:02:26]}  Nf7 {[%clk 0:02:37]} 22. Bd3 {[%clk 0:02:25]}  Nh8 {[%clk 0:02:35]} 23. Rc1 {[%clk 0:02:21]}  g5 {[%clk 0:02:22]} 24. Bb1 {[%clk 0:02:15]}  gxh4 {[%clk 0:02:09]} 25. Qd3 {[%clk 0:02:15]}  Rf7 {[%clk 0:02:06]} 26. c5 {[%clk 0:02:08]}  Qg5 {[%clk 0:01:59]} 27. Kh2 {[%clk 0:01:59]}  Rg7 {[%clk 0:01:58]} 28. Rg1 {[%clk 0:01:58]}  dxc5 {[%clk 0:01:55]} 29. bxc5 {[%clk 0:01:58]}  Nf6 {[%clk 0:01:47]} 30. d6 {[%clk 0:01:50]}  Rd8 {[%clk 0:01:34]} 31. Qf5 {[%clk 0:01:34]}  Nf7 {[%clk 0:01:20]} 32. Qxg5 {[%clk 0:01:32]}  hxg5 {[%clk 0:01:20]} 33. Rge1 {[%clk 0:01:27]}  g4 {[%clk 0:01:07]} 34. Bxh4 {[%clk 0:01:26]}  Nh5 {[%clk 0:01:02]} 35. Bxd8 {[%clk 0:01:23]}  g3+ {[%clk 0:01:02]} 36. Kg1 {[%clk 0:01:23]}  Nxd8 {[%clk 0:01:02]} 37. Rxe5 {[%clk 0:01:22]}  Nf6 {[%clk 0:01:00]} 38. Re7 {[%clk 0:01:14]}  Rg5 {[%clk 0:00:58]} 39. Kf1 {[%clk 0:01:06]}  Kf8 {[%clk 0:00:56]} 40. Ba2 {[%clk 0:00:57]}  Rh5 {[%clk 0:00:51]} 41. Ke2 {[%clk 0:00:56]}  b6 {[%clk 0:00:12]} 42. cxb6 {[%clk 0:00:51]} 1-0


[Site "https://www.chess.com"]

[Event "Titled Tuesday Blitz June 13 Early 2023"]
[White "Castillo Pena, Patricia Evarista"]
[Black "Pham, Le Thao Nguyen"]
[WhiteFideId "6412106"]
[BlackFideId "12401226"]
[WhiteElo "1859"]
[BlackElo "2286"]
[Result "0-1"]
[Round "5"]
[TimeControl "180+2"]
[Date "2023.06.13"]
[WhiteClock "0:00:00"]
[BlackClock "0:00:02"]
[Board "136"]

1. d4 {[%clk 0:02:59]}  d5 {[%clk 0:02:55]} 2. Nf3 {[%clk 0:02:59]}  Nf6 {[%clk 0:02:54]} 3. e3 {[%clk 0:02:59]}  Bg4 {[%clk 0:02:51]} 4. c4 {[%clk 0:02:58]}  c6 {[%clk 0:02:51]} 5. Nc3 {[%clk 0:02:56]}  e6 {[%clk 0:02:51]} 6. Qb3 {[%clk 0:02:43]}  Qb6 {[%clk 0:02:45]} 7. Ne5 {[%clk 0:02:40]}  Bf5 {[%clk 0:02:41]} 8. c5 {[%clk 0:02:36]}  Qc7 {[%clk 0:02:40]} 9. Bd3 {[%clk 0:02:28]}  Nbd7 {[%clk 0:02:36]} 10. Bxf5 {[%clk 0:02:24]}  exf5 {[%clk 0:02:37]} 11. f4 {[%clk 0:02:23]}  g6 {[%clk 0:02:31]} 12. O-O {[%clk 0:02:22]}  Bg7 {[%clk 0:02:30]} 13. Bd2 {[%clk 0:02:22]}  O-O {[%clk 0:02:31]} 14. Be1 {[%clk 0:02:22]}  Rfe8 {[%clk 0:02:14]} 15. Bh4 {[%clk 0:02:21]}  Nxe5 {[%clk 0:02:05]} 16. Bxf6 {[%clk 0:02:12]}  Ng4 {[%clk 0:02:01]} 17. Bxg7 {[%clk 0:02:11]}  Kxg7 {[%clk 0:02:02]} 18. Rae1 {[%clk 0:01:40]}  Nxe3 {[%clk 0:01:59]} 19. Nb5 {[%clk 0:01:06]}  cxb5 {[%clk 0:01:05]} 20. Rxe3 {[%clk 0:01:04]}  Re4 {[%clk 0:00:44]} 21. Rxe4 {[%clk 0:01:01]}  dxe4 {[%clk 0:00:45]} 22. Qxb5 {[%clk 0:00:57]}  Rd8 {[%clk 0:00:46]} 23. Qc4 {[%clk 0:00:53]}  Qc6 {[%clk 0:00:40]} 24. Rd1 {[%clk 0:00:45]}  b5 {[%clk 0:00:33]} 25. Qc3 {[%clk 0:00:42]}  Rd5 {[%clk 0:00:33]} 26. b4 {[%clk 0:00:40]}  a6 {[%clk 0:00:30]} 27. g3 {[%clk 0:00:40]}  f6 {[%clk 0:00:29]} 28. Kf2 {[%clk 0:00:40]}  g5 {[%clk 0:00:29]} 29. Ke3 {[%clk 0:00:38]}  Kg6 {[%clk 0:00:29]} 30. Rd2 {[%clk 0:00:37]}  h5 {[%clk 0:00:28]} 31. Rg2 {[%clk 0:00:37]}  Rd8 {[%clk 0:00:23]} 32. Rd2 {[%clk 0:00:34]}  Qd5 {[%clk 0:00:20]} 33. Qb3 {[%clk 0:00:30]}  Kf7 {[%clk 0:00:16]} 34. Qxd5+ {[%clk 0:00:30]}  Rxd5 {[%clk 0:00:16]} 35. Rg2 {[%clk 0:00:23]}  Ke6 {[%clk 0:00:16]} 36. a3 {[%clk 0:00:20]}  Rd7 {[%clk 0:00:15]} 37. Rc2 {[%clk 0:00:20]}  Rc7 {[%clk 0:00:11]} 38. Ra2 {[%clk 0:00:18]}  Kd5 {[%clk 0:00:11]} 39. a4 {[%clk 0:00:18]}  Kc4 {[%clk 0:00:09]} 40. axb5 {[%clk 0:00:17]}  axb5 {[%clk 0:00:10]} 41. Rb2 {[%clk 0:00:15]}  Rc8 {[%clk 0:00:08]} 42. Rd2 {[%clk 0:00:11]}  Kxb4 {[%clk 0:00:07]} 43. Rb2+ {[%clk 0:00:09]}  Kc4 {[%clk 0:00:07]} 44. Rc2+ {[%clk 0:00:09]}  Kd5 {[%clk 0:00:07]} 45. h3 {[%clk 0:00:07]}  Ra8 {[%clk 0:00:07]} 46. Rb2 {[%clk 0:00:05]}  Ra3+ {[%clk 0:00:07]} 47. Ke2 {[%clk 0:00:05]}  Kxd4 {[%clk 0:00:05]} 48. c6 {[%clk 0:00:05]}  Rc3 {[%clk 0:00:05]} 49. Rxb5 {[%clk 0:00:03]}  Rxc6 {[%clk 0:00:05]} 50. Rxf5 {[%clk 0:00:03]}  gxf4 {[%clk 0:00:03]} 51. gxf4 {[%clk 0:00:03]}  Rc2+ {[%clk 0:00:04]} 52. Kd1 {[%clk 0:00:02]}  Rh2 {[%clk 0:00:04]} 53. Rxf6 {[%clk 0:00:00]}  e3 {[%clk 0:00:02]} 0-1


[Site "https://www.chess.com"]

[Event "Titled Tuesday Blitz June 13 Early 2023"]
[White "Eugene, Floryan"]
[Black "Grossboss19"]
[WhiteFideId "20694784"]
[WhiteElo "2369"]
[BlackElo "2420"]
[Result "0-1"]
[Round "5"]
[TimeControl "180+2"]
[Date "2023.06.13"]
[WhiteClock "0:01:44"]
[BlackClock "0:00:58"]
[Board "138"]

1. b3 {[%clk 0:03:00]}  Nc6 {[%clk 0:02:46]} 2. Bb2 {[%clk 0:03:01]}  e5 {[%clk 0:02:46]} 3. e3 {[%clk 0:03:01]}  d6 {[%clk 0:02:45]} 4. c4 {[%clk 0:02:58]}  Nf6 {[%clk 0:02:45]} 5. Nf3 {[%clk 0:02:56]}  e4 {[%clk 0:02:29]} 6. Nd4 {[%clk 0:02:55]}  Nxd4 {[%clk 0:02:28]} 7. Bxd4 {[%clk 0:02:48]}  c5 {[%clk 0:02:24]} 8. Bb2 {[%clk 0:02:46]}  Bf5 {[%clk 0:02:23]} 9. d3 {[%clk 0:02:45]}  exd3 {[%clk 0:02:22]} 10. Bxd3 {[%clk 0:02:46]}  Bxd3 {[%clk 0:02:22]} 11. Qxd3 {[%clk 0:02:47]}  Be7 {[%clk 0:02:22]} 12. Nc3 {[%clk 0:02:47]}  O-O {[%clk 0:02:22]} 13. O-O {[%clk 0:02:47]}  a6 {[%clk 0:02:21]} 14. Rfd1 {[%clk 0:02:42]}  Qc7 {[%clk 0:02:19]} 15. Rd2 {[%clk 0:02:38]}  Rad8 {[%clk 0:02:16]} 16. Rad1 {[%clk 0:02:37]}  Rd7 {[%clk 0:02:12]} 17. Qf5 {[%clk 0:02:36]}  Rfd8 {[%clk 0:02:09]} 18. Qf3 {[%clk 0:02:32]}  Qc6 {[%clk 0:02:09]} 19. Qg3 {[%clk 0:02:32]}  Bf8 {[%clk 0:02:04]} 20. Nd5 {[%clk 0:02:22]}  Nxd5 {[%clk 0:02:01]} 21. Rxd5 {[%clk 0:02:23]}  b5 {[%clk 0:01:59]} 22. h4 {[%clk 0:02:22]}  bxc4 {[%clk 0:01:47]} 23. bxc4 {[%clk 0:02:22]}  Qa4 {[%clk 0:01:46]} 24. h5 {[%clk 0:02:20]}  h6 {[%clk 0:01:42]} 25. Bf6 {[%clk 0:02:13]}  Rb8 {[%clk 0:01:29]} 26. Qg4 {[%clk 0:02:12]}  Rbb7 {[%clk 0:01:24]} 27. Rxd6 {[%clk 0:02:08]}  Rxd6 {[%clk 0:01:19]} 28. Rxd6 {[%clk 0:02:07]}  Rb1+ {[%clk 0:01:19]} 29. Kh2 {[%clk 0:02:03]}  Bxd6+ {[%clk 0:01:18]} 30. g3 {[%clk 0:02:01]}  Bf8 {[%clk 0:01:16]} 31. Bxg7 {[%clk 0:02:01]}  Qd1 {[%clk 0:00:59]} 32. Qxd1 {[%clk 0:01:46]}  Rxd1 {[%clk 0:00:58]} 33. Bc3 {[%clk 0:01:44]}  Rc1 {[%clk 0:00:58]} 0-1


[Site "https://www.chess.com"]

[Event "Titled Tuesday Blitz June 13 Early 2023"]
[White "Girya, Olga"]
[Black "KorolDimitriy75"]
[WhiteFideId "4195752"]
[WhiteElo "2263"]
[BlackElo "2416"]
[Result "0-1"]
[Round "5"]
[TimeControl "180+2"]
[Date "2023.06.13"]
[WhiteClock "0:00:00"]
[BlackClock "0:00:03"]
[Board "139"]

1. d4 {[%clk 0:03:00]}  Nf6 {[%clk 0:02:59]} 2. Nf3 {[%clk 0:03:00]}  g6 {[%clk 0:02:59]} 3. Bg5 {[%clk 0:03:00]}  Bg7 {[%clk 0:02:59]} 4. Nbd2 {[%clk 0:03:01]}  c5 {[%clk 0:02:59]} 5. Bxf6 {[%clk 0:02:49]}  Bxf6 {[%clk 0:02:59]} 6. Ne4 {[%clk 0:02:49]}  Bxd4 {[%clk 0:02:58]} 7. Nxd4 {[%clk 0:02:48]}  cxd4 {[%clk 0:02:59]} 8. Qxd4 {[%clk 0:02:49]}  O-O {[%clk 0:03:00]} 9. c4 {[%clk 0:02:42]}  Nc6 {[%clk 0:02:58]} 10. Qd2 {[%clk 0:02:40]}  d6 {[%clk 0:02:55]} 11. e3 {[%clk 0:02:39]}  Qa5 {[%clk 0:02:46]} 12. Nc3 {[%clk 0:02:33]}  Be6 {[%clk 0:02:41]} 13. Be2 {[%clk 0:02:33]}  Rfc8 {[%clk 0:02:39]} 14. b3 {[%clk 0:02:26]}  a6 {[%clk 0:02:26]} 15. Na4 {[%clk 0:02:09]}  Qc7 {[%clk 0:02:06]} 16. O-O {[%clk 0:02:08]}  Rab8 {[%clk 0:02:06]} 17. Nc3 {[%clk 0:02:08]}  Qa5 {[%clk 0:02:04]} 18. Rfd1 {[%clk 0:02:05]}  b5 {[%clk 0:01:53]} 19. cxb5 {[%clk 0:01:48]}  axb5 {[%clk 0:01:53]} 20. Rac1 {[%clk 0:01:45]}  b4 {[%clk 0:00:45]} 21. Nd5 {[%clk 0:01:16]}  Bxd5 {[%clk 0:00:36]} 22. Qxd5 {[%clk 0:01:16]}  Qxd5 {[%clk 0:00:36]} 23. Rxd5 {[%clk 0:01:16]}  Ne5 {[%clk 0:00:36]} 24. Rdd1 {[%clk 0:01:01]}  Ra8 {[%clk 0:00:30]} 25. Rxc8+ {[%clk 0:00:33]}  Rxc8 {[%clk 0:00:30]} 26. f4 {[%clk 0:00:29]}  Rc2 {[%clk 0:00:14]} 27. Kf1 {[%clk 0:00:29]}  Nd7 {[%clk 0:00:11]} 28. Rd4 {[%clk 0:00:27]}  Rxa2 {[%clk 0:00:10]} 29. Rxb4 {[%clk 0:00:27]}  Nc5 {[%clk 0:00:10]} 30. Rb8+ {[%clk 0:00:26]}  Kg7 {[%clk 0:00:10]} 31. b4 {[%clk 0:00:21]}  Ne4 {[%clk 0:00:10]} 32. b5 {[%clk 0:00:17]}  Ra1+ {[%clk 0:00:09]} 33. Bd1 {[%clk 0:00:17]}  Rxd1+ {[%clk 0:00:09]} 34. Ke2 {[%clk 0:00:18]}  Rb1 {[%clk 0:00:10]} 35. b6 {[%clk 0:00:17]}  e6 {[%clk 0:00:10]} 36. g4 {[%clk 0:00:14]}  d5 {[%clk 0:00:10]} 37. g5 {[%clk 0:00:13]}  h6 {[%clk 0:00:09]} 38. h4 {[%clk 0:00:11]}  h5 {[%clk 0:00:08]} 39. Kd3 {[%clk 0:00:10]}  Rb3+ {[%clk 0:00:07]} 40. Kd4 {[%clk 0:00:11]}  Rb4+ {[%clk 0:00:07]} 41. Ke5 {[%clk 0:00:10]}  Rb3 {[%clk 0:00:07]} 42. Kd4 {[%clk 0:00:09]}  Nd6 {[%clk 0:00:04]} 43. Kc5 {[%clk 0:00:07]}  Nc4 {[%clk 0:00:04]} 44. e4 {[%clk 0:00:06]}  Rxb6 {[%clk 0:00:02]} 45. Rxb6 {[%clk 0:00:00]}  Nxb6 {[%clk 0:00:03]} 0-1


[Site "https://www.chess.com"]

[Event "Titled Tuesday Blitz June 13 Early 2023"]
[White "Rosenberg, Evan S"]
[Black "kuanysh1981"]
[WhiteFideId "2019299"]
[WhiteElo "2364"]
[BlackElo "2501"]
[Result "0-1"]
[Round "5"]
[TimeControl "180+2"]
[Date "2023.06.13"]
[WhiteClock "0:00:39"]
[BlackClock "0:02:03"]
[Board "142"]

1. d4 {[%clk 0:03:00]}  Nf6 {[%clk 0:02:59]} 2. Bg5 {[%clk 0:03:00]}  e6 {[%clk 0:02:56]} 3. e4 {[%clk 0:03:00]}  h6 {[%clk 0:02:56]} 4. Bxf6 {[%clk 0:02:59]}  Qxf6 {[%clk 0:02:57]} 5. Nc3 {[%clk 0:03:00]}  Qd8 {[%clk 0:02:57]} 6. Qd2 {[%clk 0:02:59]}  d5 {[%clk 0:02:55]} 7. e5 {[%clk 0:02:55]}  c5 {[%clk 0:02:55]} 8. O-O-O {[%clk 0:02:42]}  cxd4 {[%clk 0:02:55]} 9. Qxd4 {[%clk 0:02:42]}  Nc6 {[%clk 0:02:55]} 10. Bb5 {[%clk 0:02:43]}  Bd7 {[%clk 0:02:53]} 11. Bxc6 {[%clk 0:02:43]}  bxc6 {[%clk 0:02:49]} 12. f4 {[%clk 0:02:43]}  c5 {[%clk 0:02:45]} 13. Qd3 {[%clk 0:02:38]}  Qb6 {[%clk 0:02:44]} 14. f5 {[%clk 0:02:33]}  Rb8 {[%clk 0:02:42]} 15. b3 {[%clk 0:02:32]}  c4 {[%clk 0:02:41]} 16. Qg3 {[%clk 0:02:17]}  Qa5 {[%clk 0:02:16]} 17. fxe6 {[%clk 0:02:13]}  Bxe6 {[%clk 0:02:11]} 18. Nge2 {[%clk 0:02:03]}  Bb4 {[%clk 0:02:10]} 19. Qxg7 {[%clk 0:02:02]}  Rf8 {[%clk 0:02:07]} 20. Na4 {[%clk 0:01:47]}  Ba3+ {[%clk 0:02:05]} 21. Kb1 {[%clk 0:01:25]}  Qxa4 {[%clk 0:02:05]} 22. Rhf1 {[%clk 0:00:49]}  cxb3 {[%clk 0:02:03]} 23. axb3 {[%clk 0:00:39]}  Rxb3+ {[%clk 0:02:03]} 0-1


[Site "https://www.chess.com"]

[Event "Titled Tuesday Blitz June 13 Early 2023"]
[White "Balla, Tamas-Kristof"]
[Black "The_Sherman_Variation"]
[WhiteFideId "1208497"]
[WhiteElo "2334"]
[BlackElo "2442"]
[Result "0-1"]
[Round "5"]
[TimeControl "180+2"]
[Date "2023.06.13"]
[WhiteClock "0:00:16"]
[BlackClock "0:00:03"]
[Board "143"]

1. e4 {[%clk 0:02:58]}  g6 {[%clk 0:02:52]} 2. d4 {[%clk 0:02:57]}  Bg7 {[%clk 0:02:52]} 3. Nc3 {[%clk 0:02:58]}  d6 {[%clk 0:02:52]} 4. f4 {[%clk 0:02:57]}  a6 {[%clk 0:02:52]} 5. Nf3 {[%clk 0:02:54]}  b5 {[%clk 0:02:51]} 6. Bd3 {[%clk 0:02:51]}  b4 {[%clk 0:02:50]} 7. Nd5 {[%clk 0:02:48]}  a5 {[%clk 0:02:46]} 8. c3 {[%clk 0:02:48]}  c6 {[%clk 0:02:43]} 9. Ne3 {[%clk 0:02:47]}  Nd7 {[%clk 0:02:37]} 10. O-O {[%clk 0:02:47]}  h5 {[%clk 0:02:37]} 11. e5 {[%clk 0:02:43]}  Nh6 {[%clk 0:02:22]} 12. Ng5 {[%clk 0:02:38]}  Nf8 {[%clk 0:01:43]} 13. f5 {[%clk 0:02:33]}  dxe5 {[%clk 0:01:29]} 14. fxg6 {[%clk 0:02:29]}  f6 {[%clk 0:01:24]} 15. Nf7 {[%clk 0:02:09]}  Nxf7 {[%clk 0:01:20]} 16. gxf7+ {[%clk 0:02:10]}  Kxf7 {[%clk 0:01:20]} 17. dxe5 {[%clk 0:02:11]}  Be6 {[%clk 0:01:11]} 18. Nf5 {[%clk 0:02:01]}  Qd5 {[%clk 0:01:02]} 19. exf6 {[%clk 0:01:48]}  exf6 {[%clk 0:00:45]} 20. Nxg7 {[%clk 0:01:28]}  Kxg7 {[%clk 0:00:44]} 21. Qe2 {[%clk 0:01:27]}  Re8 {[%clk 0:00:26]} 22. Qf2 {[%clk 0:01:10]}  Nd7 {[%clk 0:00:25]} 23. Qg3+ {[%clk 0:01:04]}  Kf7 {[%clk 0:00:17]} 24. Bg6+ {[%clk 0:00:57]}  Ke7 {[%clk 0:00:17]} 25. Bxe8 {[%clk 0:00:58]}  Rxe8 {[%clk 0:00:18]} 26. Bf4 {[%clk 0:00:47]}  Rg8 {[%clk 0:00:18]} 27. Qf2 {[%clk 0:00:47]}  Bh3 {[%clk 0:00:17]} 28. Bg3 {[%clk 0:00:45]}  Be6 {[%clk 0:00:16]} 29. Rad1 {[%clk 0:00:44]}  Qxa2 {[%clk 0:00:13]} 30. Rfe1 {[%clk 0:00:41]}  Kf7 {[%clk 0:00:12]} 31. cxb4 {[%clk 0:00:32]}  Bd5 {[%clk 0:00:12]} 32. Qe3 {[%clk 0:00:23]}  Ne5 {[%clk 0:00:08]} 33. Qh6 {[%clk 0:00:18]}  h4 {[%clk 0:00:07]} 34. Qxh4 {[%clk 0:00:18]}  Rg6 {[%clk 0:00:06]} 35. Qh7+ {[%clk 0:00:18]}  Rg7 {[%clk 0:00:06]} 36. Qf5 {[%clk 0:00:19]}  Qc4 {[%clk 0:00:05]} 37. Rxe5 {[%clk 0:00:18]}  Qxb4 {[%clk 0:00:03]} 38. Ree1 {[%clk 0:00:17]}  Qc5+ {[%clk 0:00:03]} 39. Kh1 {[%clk 0:00:17]}  Qb4 {[%clk 0:00:02]} 40. Rf1 {[%clk 0:00:17]}  Qxb2 {[%clk 0:00:03]} 41. Be5 {[%clk 0:00:16]}  Qxg2# {[%clk 0:00:03]} 0-1


[Site "https://www.chess.com"]